{"text_format":"1","workbook":"xlsx","n_sheets":3,"sheets":["Auxiliaires","Unité de regroupement","Titre d'emploi"],"not_rendered":{"charts":0,"images":1,"macros":1,"external_links":1,"defined_names":6,"comments":1,"pivot_tables":0},"unopened":[],"bounds":{"document_bytes":16777216,"sheet_cells":100000,"rows_first":2000,"rows_last":500,"rows_between":2000,"halvings":0,"cell_chars":16384,"cell_head_chars":4096},"cells_cut":0,"cells_raw":0,"read":"whole","date_system":"1900"}

{"sheet":"Auxiliaires","index":0,"n_rows":104,"n_cols":85,"rows_kept":104,"cut":false,"hidden":false,"merged":[[11,20,11,28],[11,33,11,40],[11,48,11,55],[13,1,13,12],[13,20,13,27],[13,33,13,40],[13,48,13,55],[0,19,0,32],[1,0,1,86],[0,77,0,85],[21,1,21,61],[6,36,6,66],[22,36,22,38],[21,63,21,85],[103,71,103,85],[2,16,2,72],[2,76,2,85],[6,1,6,34],[50,1,50,5],[24,15,24,17],[102,79,102,86],[38,30,38,60],[38,80,38,85],[6,78,6,85],[22,81,22,83],[23,81,23,83],[24,81,24,83],[6,69,6,76],[25,81,25,83],[4,69,4,85],[11,1,11,12],[25,15,25,17],[24,57,24,59],[34,37,34,40],[102,37,102,38],[94,1,94,30],[95,33,95,41],[100,1,100,30],[100,45,100,74],[42,1,42,45],[42,47,42,49],[34,64,34,71],[51,72,51,82],[52,1,52,5],[52,7,52,33],[34,1,34,32],[34,49,34,56],[46,50,46,55],[46,60,46,64],[46,66,46,70],[88,45,88,74],[99,1,99,30],[99,45,99,73],[52,35,52,42],[52,45,52,46],[52,50,52,54],[99,33,99,41],[98,1,98,30],[23,36,23,38],[24,36,24,38],[22,57,22,59],[23,15,23,17],[22,15,22,17],[61,72,61,82],[66,38,66,40],[72,72,72,82],[88,77,88,85],[64,72,64,82],[62,72,62,82],[45,35,45,42],[45,50,45,55],[45,60,45,64],[45,66,45,70],[48,60,48,64],[48,66,48,70],[48,72,48,82],[54,56,54,58],[23,57,23,59],[41,1,41,51],[45,1,45,5],[45,72,45,79],[46,72,46,79],[55,72,55,82],[96,45,96,74],[96,1,96,30],[95,77,95,85],[94,33,94,41],[94,45,94,74],[68,57,68,60],[95,1,95,30],[95,45,95,74],[94,77,94,85],[89,45,89,74],[89,77,89,85],[68,26,68,29],[68,35,68,36],[75,9,75,85],[76,1,76,85],[72,57,72,60],[72,62,72,63],[72,1,72,5],[72,7,72,10],[72,13,72,17],[72,19,72,21],[72,26,72,29],[72,35,72,36],[52,66,52,70],[98,77,98,85],[99,77,99,85],[62,1,62,5],[68,72,68,82],[92,1,92,85],[50,45,50,46],[50,50,50,54],[50,56,50,58],[98,45,98,74],[98,33,98,41],[90,45,90,74],[50,60,50,64],[50,66,50,70],[50,72,50,82],[57,72,57,82],[58,60,58,64],[58,66,58,70],[58,72,58,82],[62,45,62,46],[62,50,62,54],[62,56,62,58],[62,60,62,64],[54,84,54,85],[52,72,52,82],[52,84,52,85],[53,72,53,82],[48,84,48,85],[50,7,50,33],[50,35,50,42],[56,1,56,5],[56,7,56,33],[56,35,56,42],[56,45,56,46],[56,50,56,54],[54,1,54,5],[54,7,54,33],[54,35,54,42],[54,45,54,46],[54,50,54,54],[48,1,48,5],[48,7,48,33],[48,35,48,42],[48,45,48,46],[48,50,48,54],[48,56,48,58],[52,56,52,58],[52,60,52,64],[60,1,60,5],[60,7,60,33],[60,35,60,42],[60,45,60,46],[60,50,60,54],[58,1,58,5],[58,7,58,33],[58,35,58,42],[58,45,58,46],[58,50,58,54],[62,7,62,33],[62,35,62,42],[38,66,38,73],[68,38,68,40],[62,66,62,70],[58,84,58,85],[59,72,59,82],[58,56,58,58],[60,56,60,58],[60,60,60,64],[60,66,60,70],[60,72,60,82],[60,84,60,85],[50,84,50,85],[56,56,56,58],[56,60,56,64],[56,66,56,70],[56,72,56,82],[56,84,56,85],[54,60,54,64],[54,66,54,70],[54,72,54,82],[62,84,62,85],[66,7,66,10],[66,72,66,82],[70,72,70,82],[72,38,72,40],[70,1,70,5],[70,7,70,10],[70,13,70,17],[70,19,70,21],[70,26,70,29],[70,35,70,36],[70,38,70,40],[68,1,68,5],[68,7,68,10],[68,13,68,17],[68,19,68,21],[68,61,68,64],[66,61,66,64],[70,61,70,64]]}
[null,null,null,null,null,null,null,null,null,null,null,null,null,null,null,null,null,null,null,null,null,null,null,null,null,null,null,null,null,null,null,null,null,null,null,null,null,null,null,null,null,null,null,null,null,null,null,null,null,null,null,null,null,null,null,null,null,null,null,null,null,null,null,null,null,null,null,null,null,null,null,null,null,null,null,null,null,"CONTRAT"]
["DEMANDE DE RÉMUNÉRATION"]
[null,null,null,null,null,null,null,null,null,null,null,null,null,null,null,null,"AUXILIAIRES À L'ENSEIGNEMENT"]
[]
[null,"NOM",null,null,null,null,null,null,null,null,null,null,null,null,null,null,null,null,null,null,null,null,null,null,null,null,null,null,null,null,null,null,null,null,null,null,"PRÉNOM",null,null,null,null,null,null,null,null,null,null,null,null,null,null,null,null,null,null,null,null,null,null,null,null,null,null,null,null,null,null,null,null,"MATRICULE (obligatoire)"]
[null,null,null,null,null,null,null,null,null,null,null,null,null,null,null,null,null,null,null,null,null,null,null,null,null,null,null,null,null,null,null,null,null,null,null,null,null,null,null,null,null,null,null,null,null,null,null,null,null,null,null,null,null,null,null,null,null,null,null,null,null,null,null,null,null,null,null,null,null,null,"Employé",null,null,null,null,null,null,null,null,"Étudiant"]
[]
[]
[]
[null,"ETUDIANT ÉTRANGER"]
[]
[null,"PERMIS DE TRAVAIL",null,null,null,null,null,null,null,null,null,null,null,null,null,null,null,null,null,null,"DATE DE DÉBUT",null,null,null,null,null,null,null,null,null,null,null,null,"DATE DE FIN",null,null,null,null,null,null,null,null,null,null,null,null,null,null,"FIN NAS"]
[]
[]
[]
[]
[]
[]
[]
[]
[null,"TITRE D'EMPLOI"]
[null,"AUXILIAIRES À L'ENSEIGNEMENT"]
[null,"Surveillant",null,null,null,null,null,null,null,null,null,null,"TAG:",null,null,1061,null,null,null,"Répétiteur:",null,null,null,null,null,null,"1er cycle",null,null,null,null,null,null,"TAG:",null,null,1062,null,null,null,"Correcteur:",null,null,null,null,null,null,"1er cycle",null,null,null,null,null,null,"TAG:",null,null,1066]
[null,"Chef surveillant",null,null,null,null,null,null,null,null,null,null,"TAG:",null,null,1065,null,null,null,null,null,null,null,null,null,null,"2e cycle",null,null,null,null,null,null,"TAG:",null,null,1063,null,null,null,null,null,null,null,null,null,null,"2e cycle",null,null,null,null,null,null,"TAG:",null,null,1067]
[null,"Chargé TP",null,null,null,null,null,null,null,null,null,null,"TAG:",null,null,1106,null,null,null,null,null,null,null,null,null,null,"3e cycle",null,null,null,null,null,null,"TAG:",null,null,1064,null,null,null,null,null,null,null,null,null,null,"3e cycle",null,null,null,null,null,null,"TAG:",null,null,1068]
[]
[]
[null,"CYCLE DE L'ÉTUDIANT",null,null,null,null,null,null,null,null,null,null,null,null,null,null,null,null,null,null,null,null,null,null,null,null,null,null,null,null,null,null,null,null,null,null,null,null,null,null,null,null,null,null,null,null,null,null,null,null,null,null,null,null,null,null,null,null,null,null,null,null,null,null,null,null,"OBTENU",null,null,null,null,null,"EN COURS"]
[null,null,null,null,null,null,null,null,null,null,null,null,null,null,null,null,null,null,null,null,null,null,null,null,null,null,null,null,null,null,null,null,null,null,null,null,null,null,null,null,null,null,null,null,null,null,null,null,null,null,null,null,null,null,null,"BACCALAURÉAT"]
[null,null,null,null,null,null,null,null,null,null,null,null,null,null,null,null,null,null,null,null,null,null,null,null,null,null,null,null,null,null,null,null,null,null,null,null,null,null,null,null,null,null,null,null,null,null,null,null,null,null,null,null,null,null,null,"MAITRISE"]
[null,null,null,null,null,null,null,null,null,null,null,null,null,null,null,null,null,null,null,null,null,null,null,null,null,null,null,null,null,null,null,null,null,null,null,null,null,null,null,null,null,null,null,null,null,null,null,null,null,null,null,null,null,null,null,"DOCTORAT"]
[]
[]
[null,"CENTRE, DÉPARTEMENT, INSTITUT ou SERVICE",null,null,null,null,null,null,null,null,null,null,null,null,null,null,null,null,null,null,null,null,null,null,null,null,null,null,null,null,null,null,null,"UNITÉ ADMINISTRATIVE",null,null,null,null,null,null,null,null,null,null,null,null,null,"SEMAINE DÉBUT D'EMPLOI",null,null,null,null,null,null,null,null,null,null,null,null,null,null,"SEMAINE FIN D'EMPLOI",null,null,null,null,null,null,null,null,null,null,null,null,null,null,null,"TRIMESTRE"]
[null,null,null,null,null,null,null,null,null,null,null,null,null,null,null,null,null,null,null,null,null,null,null,null,null,null,null,null,null,null,null,null,null,null,null,null,null,null,null,null,null,null,null,null,null,null,null,null,null,null,null,null,null,null,null,null,null,null,null,null,null,null,null,null,null,null,null,null,null,null,null,null,null,null,null,null,null,"A",null,null,"H",null,null,"E"]
[]
[]
[null,null,null,null,null,null,null,null,null,null,null,null,null,null,null,null,null,null,null,null,null,null,null,null,null,null,null,null,null,null,"TITRE D'EMPLOI",null,null,null,null,null,null,null,null,null,null,null,null,null,null,null,null,null,null,null,null,null,null,null,null,null,null,null,null,null,null,null,null,"UNITÉ DE REGROUPEMENT",null,null,null,null,null,null,null,null,null,null,null,null,null,null,null,null,null,null,"STATUT"]
[]
[]
[]
[null,"NOMBRE DE SEMAINES OUVRANT DROIT À UNE RÉMUNÉRATION DANS LE TRIMESTRE"]
[]
[]
[]
[null,"TAG",null,null,null,null,null,null,null,null,"TITRE DU COURS",null,null,null,null,null,null,null,null,null,null,null,null,null,null,null,null,null,null,null,null,null,null,null,null,"NO DU COURS",null,null,null,null,null,null,null,null,"SECTION",null,null,null,null,null,"NOMBRE",null,null,null,null,null,"NBRE",null,null,null,"TOTAL",null,null,null,null,null,"TAUX",null,null,null,null,null,"MONTANT",null,null,null,null,null,null,null,null,null,null,"NBRE DE"]
[null,null,null,null,null,null,null,null,null,null,null,null,null,null,null,null,null,null,null,null,null,null,null,null,null,null,null,null,null,null,null,null,null,null,null,null,null,null,null,null,null,null,null,null,null,null,null,null,null,null,"HRES/SEM.",null,null,null,null,null,"SEM.",null,null,null,"HRES",null,null,null,null,null,"HORAIRE",null,null,null,null,null,"TOTAL",null,null,null,null,null,null,null,null,null,null,null,"VERS."]
[]
[null,null,null,null,null,null,null,null,null,null,null,null,null,null,null,null,null,null,null,null,null,null,null,null,null,null,null,null,null,null,null,null,null,null,null,null,null,null,null,null,null,null,null,null,null,null,null,null,null,null,null,null,null,null,null,null,null,null,null,null,{"$f":"AY49*BE49","v":0},null,null,null,null,null,{"$f":"IF(ISNA(VLOOKUP(B49,donnees_Auxiliaires,2,FALSE)),\" \",VLOOKUP(B49,donnees_Auxiliaires,2,FALSE))","v":" "},null,null,null,null,null,{"$f":"IF(BO49=\" \",0,BI49*BO49)","v":0}]
[]
[null,null,null,null,null,null,null,null,null,null,null,null,null,null,null,null,null,null,null,null,null,null,null,null,null,null,null,null,null,null,null,null,null,null,null,null,null,null,null,null,null,null,null,null,null,null,null,null,null,null,null,null,null,null,null,null,null,null,null,null,{"$f":"AY51*BE51","v":0},null,null,null,null,null,{"$f":"IF(ISNA(VLOOKUP(B51,donnees_Auxiliaires,2,FALSE)),\" \",VLOOKUP(B51,donnees_Auxiliaires,2,FALSE))","v":" "},null,null,null,null,null,{"$f":"IF(BO51=\" \",0,BI51*BO51)","v":0}]
[null,null,null,null,null,null,null,null,null,null,null,null,null,null,null,null,null,null,null,null,null,null,null,null,null,null,null,null,null,null,null,null,null,null,null,null,null,null,null,null,null,null,null,null,null,null,null,null,null,null,null,null,null,null,null,null,null,null,null,null,null,null,null,null,null,null,null,null,null,null,null,null,{"$f":"IF(BI52=\" \",\" \",BI52*BO52)","v":0}]
[null,null,null,null,null,null,null,null,null,null,null,null,null,null,null,null,null,null,null,null,null,null,null,null,null,null,null,null,null,null,null,null,null,null,null,null,null,null,null,null,null,null,null,null,null,null,null,null,null,null,null,null,null,null,null,null,null,null,null,null,{"$f":"AY53*BE53","v":0},null,null,null,null,null,{"$f":"IF(ISNA(VLOOKUP(B53,donnees_Auxiliaires,2,FALSE)),\" \",VLOOKUP(B53,donnees_Auxiliaires,2,FALSE))","v":" "},null,null,null,null,null,{"$f":"IF(BO53=\" \",0,BI53*BO53)","v":0}]
[null,null,null,null,null,null,null,null,null,null,null,null,null,null,null,null,null,null,null,null,null,null,null,null,null,null,null,null,null,null,null,null,null,null,null,null,null,null,null,null,null,null,null,null,null,null,null,null,null,null,null,null,null,null,null,null,null,null,null,null,null,null,null,null,null,null,null,null,null,null,null,null,0]
[null,null,null,null,null,null,null,null,null,null,null,null,null,null,null,null,null,null,null,null,null,null,null,null,null,null,null,null,null,null,null,null,null,null,null,null,null,null,null,null,null,null,null,null,null,null,null,null,null,null,null,null,null,null,null,null,null,null,null,null,{"$f":"AY55*BE55","v":0},null,null,null,null,null,{"$f":"IF(ISNA(VLOOKUP(B55,donnees_Auxiliaires,2,FALSE)),\" \",VLOOKUP(B55,donnees_Auxiliaires,2,FALSE))","v":" "},null,null,null,null,null,{"$f":"IF(BO55=\" \",0,BI55*BO55)","v":0}]
[null,null,null,null,null,null,null,null,null,null,null,null,null,null,null,null,null,null,null,null,null,null,null,null,null,null,null,null,null,null,null,null,null,null,null,null,null,null,null,null,null,null,null,null,null,null,null,null,null,null,null,null,null,null,null,null,null,null,null,null,null,null,null,null,null,null,null,null,null,null,null,null,0]
[null,null,null,null,null,null,null,null,null,null,null,null,null,null,null,null,null,null,null,null,null,null,null,null,null,null,null,null,null,null,null,null,null,null,null,null,null,null,null,null,null,null,null,null,null,null,null,null,null,null,null,null,null,null,null,null,null,null,null,null,{"$f":"AY57*BE57","v":0},null,null,null,null,null,{"$f":"IF(ISNA(VLOOKUP(B57,donnees_Auxiliaires,2,FALSE)),\" \",VLOOKUP(B57,donnees_Auxiliaires,2,FALSE))","v":" "},null,null,null,null,null,{"$f":"IF(BO57=\" \",0,BI57*BO57)","v":0}]
[null,null,null,null,null,null,null,null,null,null,null,null,null,null,null,null,null,null,null,null,null,null,null,null,null,null,null,null,null,null,null,null,null,null,null,null,null,null,null,null,null,null,null,null,null,null,null,null,null,null,null,null,null,null,null,null,null,null,null,null,null,null,null,null,null,null,null,null,null,null,null,null,0]
[null,null,null,null,null,null,null,null,null,null,null,null,null,null,null,null,null,null,null,null,null,null,null,null,null,null,null,null,null,null,null,null,null,null,null,null,null,null,null,null,null,null,null,null,null,null,null,null,null,null,null,null,null,null,null,null,null,null,null,null,{"$f":"AY59*BE59","v":0},null,null,null,null,null,{"$f":"IF(ISNA(VLOOKUP(B59,donnees_Auxiliaires,2,FALSE)),\" \",VLOOKUP(B59,donnees_Auxiliaires,2,FALSE))","v":" "},null,null,null,null,null,{"$f":"IF(BO59=\" \",0,BI59*BO59)","v":0}]
[null,null,null,null,null,null,null,null,null,null,null,null,null,null,null,null,null,null,null,null,null,null,null,null,null,null,null,null,null,null,null,null,null,null,null,null,null,null,null,null,null,null,null,null,null,null,null,null,null,null,null,null,null,null,null,null,null,null,null,null,null,null,null,null,null,null,null,null,null,null,null,null,0]
[null,null,null,null,null,null,null,null,null,null,null,null,null,null,null,null,null,null,null,null,null,null,null,null,null,null,null,null,null,null,null,null,null,null,null,null,null,null,null,null,null,null,null,null,null,null,null,null,null,null,null,null,null,null,null,null,null,null,null,null,{"$f":"AY61*BE61","v":0},null,null,null,null,null,{"$f":"IF(ISNA(VLOOKUP(B61,donnees_Auxiliaires,2,FALSE)),\" \",VLOOKUP(B61,donnees_Auxiliaires,2,FALSE))","v":" "},null,null,null,null,null,{"$f":"IF(BO61=\" \",0,BI61*BO61)","v":0}]
[null,null,null,null,null,null,null,null,null,null,null,null,null,null,null,null,null,null,null,null,null,null,null,null,null,null,null,null,null,null,null,null,null,null,null,null,null,null,null,null,null,null,null,null,null,null,null,null,null,null,null,null,null,null,null,null,null,null,null,null,null,null,null,null,null,null,null,null,null,null,null,null,0]
[null,null,null,null,null,null,null,null,null,null,null,null,null,null,null,null,null,null,null,null,null,null,null,null,null,null,null,null,null,null,null,null,null,null,null,null,null,null,null,null,null,null,null,null,null,null,null,null,null,null,null,null,null,null,null,null,null,null,null,null,{"$f":"AY63*BE63","v":0},null,null,null,null,null,{"$f":"IF(ISNA(VLOOKUP(B63,donnees_Auxiliaires,2,FALSE)),\" \",VLOOKUP(B63,donnees_Auxiliaires,2,FALSE))","v":" "},null,null,null,null,null,{"$f":"IF(BO63=\" \",0,BI63*BO63)","v":0}]
[]
["VENTILATION BUDGÉTAIRE",null,null,null,null,null,null,null,null,null,null,null,null,null,null,null,null,null,null,null,null,null,null,null,null,null,null,null,null,null,null,null,null,null,null,null,null,null,null,null,null,null,null,null,null,null,null,null,null,null,null,null,null,null,null,null,null,null,null,null,null,null,null,"Sous-total",null,null,null,null,null,null,null,null,{"$f":"ROUND(SUM(BU49,BU51,BU53,BU55,BU57,BU59,BU61,BU63),2)","v":0}]
[]
[null,"UBR",null,null,null,null,null,"COMPTE",null,null,null,null,"FINANCEMENT",null,null,null,null,null,null,"CBS",null,null,null,"UNITÉ ADMINISTRATIVE",null,null,null,null,null,null,null,null,null,null,"FONDS",null,null,null,"%",null,null,null,null,null,null,null,null,null,null,null,null,null,null,null,null,null,null,null,null,null,null,0.08,null,null,null,"de vacances",null,null,null,null,null,null,{"$f":"ROUND($BU$65*BJ67,2)","v":0}]
[]
[null,null,null,null,null,null,null,null,null,null,null,null,null,null,null,null,null,null,null,null,null,null,null,null,null,null,null,null,null,null,null,null,null,null,null,null,null,null,null,null,null,null,null,null,null,null,null,null,null,null,null,null,null,null,null,null,null,null,null,null,null,3.7499999999999999E-2,null,null,null,"de congés",null,null,null,null,null,null,{"$f":"ROUND($BU$65*BJ69,2)","v":0}]
[]
[null,null,null,null,null,null,null,null,null,null,null,null,null,null,null,null,null,null,null,null,null,null,null,null,null,null,null,null,null,null,null,null,null,null,null,null,null,null,null,null,null,null,null,null,null,null,null,null,null,null,null,null,null,null,null,null,null,null,null,null,null,3.5999999999999997E-2,null,null,null,"de jours fériés",null,null,null,null,null,null,{"$f":"ROUND($BU$65*BJ71,2)","v":0}]
[]
[null,null,null,null,null,null,null,null,null,null,null,null,null,null,null,null,null,null,null,null,null,null,null,null,null,null,null,null,null,null,null,null,null,null,null,null,null,null,null,null,null,null,null,null,null,null,null,null,null,null,null,null,null,null,null,null,null,null,null,null,null,null,null,null,null,"TOTAL",null,null,null,null,null,null,{"$f":"BU65+BU67+BU69+BU71","v":0}]
[]
[]
["REMARQUES:"]
[]
[]
[]
[]
[]
[]
[]
[]
[]
[]
[]
[]
[null,null,null,null,null,null,null,null,null,null,null,null,null,null,null,null,null,null,null,null,null,null,null,null,null,null,null,null,null,null,null,null,null,null,null,null,null,null,null,null,null,null,null,null,null,"SIGNATURE DE L'EMPLOYÉ",null,null,null,null,null,null,null,null,null,null,null,null,null,null,null,null,null,null,null,null,null,null,null,null,null,null,null,null,null,null,null,"DATE"]
[]
[]
[]
[null,"SIGNATURES POUR L'ÉCOLE POLYTECHNIQUE"]
[]
[null,"RESPONSABLE DU COURS/PROJET",null,null,null,null,null,null,null,null,null,null,null,null,null,null,null,null,null,null,null,null,null,null,null,null,null,null,null,null,null,null,null,"DATE",null,null,null,null,null,null,null,null,null,null,null,"DIRECTION DU CENTRE, DÉPARTEMENT, INSTITUT OU SERVICE",null,null,null,null,null,null,null,null,null,null,null,null,null,null,null,null,null,null,null,null,null,null,null,null,null,null,null,null,null,null,null,"DATE"]
[]
[]
[]
[null,"SERVICE DES RESSOURCES HUMAINES",null,null,null,null,null,null,null,null,null,null,null,null,null,null,null,null,null,null,null,null,null,null,null,null,null,null,null,null,null,null,null,"DATE",null,null,null,null,null,null,null,null,null,null,null,"SERVICE DES FINANCES",null,null,null,null,null,null,null,null,null,null,null,null,null,null,null,null,null,null,null,null,null,null,null,null,null,null,null,null,null,null,null,"DATE"]
[]
[]
[]
[null,null,null,null,null,null,null,null,null,null,null,null,null,null,null,null,null,null,null,null,null,null,null,null,null,null,null,null,null,null,null,null,null,null,null,null,null,null,null,null,null,null,null,null,null,null,null,null,null,null,null,null,null,null,null,null,null,null,null,null,null,null,null,null,null,null,null,null,null,null,null,"DR-AUXI",null,null,null,null,null,null,null,"######"]
[null,null,null,null,null,null,null,null,null,null,null,null,null,null,null,null,null,null,null,null,null,null,null,null,null,null,null,null,null,null,null,null,null,null,null,null,null,null,null,null,null,null,null,null,null,null,null,null,null,null,null,null,null,null,null,null,null,null,null,null,null,null,null,null,null,null,null,null,null,null,null,"(12 juillet 2018)"]

{"sheet":"Unité de regroupement","index":1,"n_rows":5,"n_cols":1,"rows_kept":5,"cut":false,"hidden":true,"merged":[]}
["AAREP"]
["ACEP"]
["APEP"]
["AUXI"]
["CCTP"]

{"sheet":"Titre d'emploi","index":2,"n_rows":16,"n_cols":8,"rows_kept":16,"cut":false,"hidden":true,"merged":[]}
["Auxiliaires d'enseignement","Surveillant : Indemnité de vacances de 8% (TAG: 1061)",1061,15.25,1.22,0.56999999999999995,0.55000000000000004,17.600000000000001]
["Auxiliaires d'enseignement","Répétiteur (1er cycle) : Indemnité de vacances de8% (TAG : 1062)",1062,17.72,1.42,0.66,0.64,20.440000000000001]
["Auxiliaires d'enseignement","Répétiteur (2e cycle) : Indemnité de vacances de 8% (TAG : 1063)",1063,22,1.76,0.83,0.79,25.38]
["Auxiliaires d'enseignement","Répétiteur (3e cycle) : Indemnité de vacances de 8% (TAG : 1064)",1064,23.87,1.91,0.89,0.86,27.53]
["Auxiliaires d'enseignement","Chef surveillant : Indemnité de vacances de 8% (TAG:  1065)",1065,15.3,1.22,0.56999999999999995,0.55000000000000004,17.649999999999999]
["Auxiliaires d'enseignement","Correcteur (1er cycle) : Indemnité de vacances de 8% (TAG: 1066)",1066,16.12,1.29,0.6,0.57999999999999996,18.59]
["Auxiliaires d'enseignement","Correcteur (2e cycle) : Indemnité de vacances de 8% (TAG: 1067)",1067,19.03,1.52,0.71,0.69,21.95]
["Auxiliaires d'enseignement","Correcteur (3e cycle) : Indemnité de vacances de 8% (TAG : 1068)",1068,21.14,1.69,0.79,0.76,24.38]
[null,"Chargé de travaux pratiques",1106,75.14,6.01,2.82,2.71,86.68]
[]
[]
[]
[]
[]
[]
[null,null,"tag","base","vacances","congés","fériés","global"]